fUSD/lending_fUSD_20240630
["ID","MTS","AMOUNT","RATE_DAILY","PERIOD"]
[330682713,1719707447853,-151.0,0.00013808,2]
[330682714,1719707447863,-500.0,0.00013808,3]
[330682715,1719707447873,-151.0,0.00013808,2]
[330682716,1719707447882,-500.0,0.00013808,3]
[330682717,1719707447892,-500.0,0.00013808,3]
[330682718,1719707447902,-500.0,0.00013808,3]
[330682719,1719707447912,-500.0,0.00013808,2]
[330682720,1719707447922,-500.0,0.00013808,3]
[330682721,1719707447932,-500.0,0.00013808,2]
[330682722,1719707447941,-500.0,0.00013808,3]
[330682723,1719707447951,-1089.62,0.00013808,3]
[330682724,1719707447960,-500.0,0.00013808,3]
[330682725,1719707447970,-1292.95,0.00013808,3]
[330682726,1719707447979,-500.0,0.00013808,3]
[330682727,1719707447989,-792.24,0.00013808,3]
[330682728,1719707447998,-1052.64070964,0.00013808,3]
[330682729,1719707448729,-417.83706897,0.00013698,3]
[330682730,1719707448745,-82.16293103,0.00013698,3]
[330682731,1719707448755,-500.0,0.00013698,3]
[330682732,1719707448765,-500.0,0.00013698,3]
[330682733,1719707448774,-183.14157999,0.00013798,2]
[330682734,1719707448784,-209.66596824,0.00013807,2]
[330682735,1719707448794,-694.34521913,0.00013807,2]
[330682736,1719707448806,-2325.58293076,0.00013807,2]
[330682737,1719707448818,-2896.5521411,0.00013807,2]
[330682738,1719707448828,-688.12929036,0.00013808,3]
[330682739,1719707448838,-1046.36,0.00013808,3]
[330682740,1719707448848,-369.47690673,0.00013808,3]
[330682741,1719707448860,-130.52309327,0.00013808,3]
[330682742,1719707448869,-4672.93632222,0.00013808,3]
[330682743,1719707448881,-653.81367778,0.00013808,3]
[330682744,1719707448891,-500.0,0.00013808,3]
[330682745,1719707448901,-1048.96,0.00013808,3]
[330682746,1719707448910,-500.0,0.00013808,3]
[330682747,1719707448921,-697.82171601,0.00013808,3]
[330682748,1719707448939,-26.31828399,0.00013808,3]
[330682749,1719707448951,-500.0,0.00013808,3]
[330682750,1719707448962,-91.93204832,0.00013808,3]
[330682751,1719707448979,-313.99159286,0.00013808,3]
[330682752,1719707448991,-94.07635882,0.00013808,3]
[330682753,1719707449000,-235.26769473,0.00013808,3]
[330682754,1719707449012,-854.25230527,0.00013808,3]
[330682755,1719707449021,-500.0,0.00013808,3]
[330682756,1719707449031,-500.0,0.00013808,3]
[330682757,1719707449040,-500.0,0.00013808,3]
[330682758,1719707449051,-524.83,0.00013808,3]
[330682759,1719707449060,-777.4,0.00013808,3]
[330682760,1719707449071,-337.15,0.00013808,3]
[330682761,1719707449085,-636.92,0.00013808,3]
[330682762,1719707449094,-500.0,0.00013808,3]
[330682763,1719707449104,-375.69,0.00013808,3]
[330682764,1719707449115,-1257.4,0.00013808,3]
[330682765,1719707449127,-500.0,0.00013808,3]
[330682766,1719707449137,-777.09,0.00013808,3]
[330682767,1719707449147,-500.0,0.00013808,3]
[330682768,1719707449158,-500.0,0.00013808,3]
[330682769,1719707449169,-500.0,0.00013808,3]
[330682770,1719707449179,-500.0,0.00013808,3]
[330682771,1719707449188,-500.0,0.00013808,3]
[330682772,1719707449198,-1472.3,0.00013808,3]
[330682773,1719707449207,-500.0,0.00013808,3]
[330682774,1719707449217,-4579.88,0.00013808,3]
[330682775,1719707449226,-599.74,0.00013808,3]
[330682776,1719707449236,-1240.07,0.00013808,3]
[330682777,1719707449245,-500.0,0.00013808,3]
[330682778,1719707449255,-500.0,0.00013808,3]
[330682779,1719707449265,-500.0,0.00013808,3]
[330682780,1719707449278,-581.42,0.00013808,3]
[330682781,1719707449288,-500.0,0.00013808,3]
[330682782,1719707449298,-500.0,0.00013808,3]
[330682783,1719707449308,-1104.13,0.00013808,3]
[330682784,1719707449318,-828.28,0.00013808,3]
[330682785,1719707449328,-500.0,0.00013808,3]
[330682786,1719707449337,-500.0,0.00013808,3]
[330682787,1719707449347,-500.0,0.00013808,3]
[330682788,1719707449356,-500.0,0.00013808,3]
[330682789,1719707449365,-500.0,0.00013808,3]
[330682790,1719707449375,-510.9,0.00013808,3]
[330682791,1719707449384,-587.89,0.00013808,3]
[330682792,1719707449393,-1249.88,0.00013808,3]
[330682793,1719707449402,-500.0,0.00013808,3]
[330682794,1719707449412,-2595.22,0.00013808,3]
[330682795,1719707449423,-860.66,0.00013808,3]
[330682796,1719707449432,-906.18,0.00013808,3]
[330682797,1719707449442,-138.47969465,0.00013808,3]
[330682798,1719707449456,-1190.77030535,0.00013808,3]
[330682799,1719707449466,-2049.0,0.00013808,3]
[330682800,1719707449475,-500.0,0.00013808,3]
[330682801,1719707449484,-687.86,0.00013808,3]
[330682802,1719707449494,-656.84,0.00013808,3]
[330682803,1719707449503,-500.0,0.00013808,3]
[330682804,1719707449513,-748.43,0.00013808,3]
[330682805,1719707449522,-500.0,0.00013808,3]
[330682806,1719707449532,-500.0,0.00013808,3]
[330682807,1719707449542,-500.0,0.00013808,3]
[330682808,1719707449552,-417.84594172,0.00013808,3]
[330682809,1719707449564,-369.18405828,0.00013808,3]
[330682810,1719707449574,-546.95,0.00013808,3]
[330682811,1719707449584,-500.0,0.00013808,3]
[330682812,1719707449594,-500.0,0.00013808,3]
[330682813,1719707449604,-718.36,0.00013808,3]
[330682814,1719707449614,-500.0,0.00013808,3]
[330682815,1719707449624,-601.53,0.00013808,3]
[330682816,1719707449633,-32.19088011,0.00013808,3]
[330682817,1719707449646,-3160.36911989,0.00013808,3]
[330682818,1719707449655,-1272.4091238,0.00013808,3]
[330682819,1719707478726,-5661.72,0.00013215,2]
[330682820,1719707636398,3023.35359891,0.00011098,2]
[330682823,1719707671596,633.43831024,6.94e-05,2]
[330682833,1719707783428,526.41386275,0.00011098,2]
[330682835,1719707786587,450.15,0.00010822,2]
[330682840,1719707870261,345.65611418,0.00011098,2]
[330682844,1719708118995,202.61158518,0.00011098,2]
[330682845,1719708124080,308.12292157,0.00011098,2]
[330682846,1719708137253,250.01192836,0.00011098,2]
[330682847,1719708169292,325.76900242,0.00011098,2]
[330682848,1719708172816,155.0,0.00011098,2]
[330682851,1719708223253,264.25256812,0.00011098,2]
[330682852,1719708240581,196.06739155,0.00011098,2]
[330682853,1719708277890,155.0,0.00011098,2]
[330682854,1719708301406,155.0,0.00011098,2]
[330682855,1719708309072,1494.4217879,0.00011098,2]
[330682857,1719708324063,1494.4217879,0.00011098,2]
[330682858,1719708373635,546.48851695,0.00011098,2]
[330682859,1719708377438,448.68,9.909e-05,2]
[330682863,1719708530535,202.16984257,0.00011098,2]
[330682864,1719708566123,307.94365081,0.00011098,2]
[330682865,1719708566149,-155.0,0.00011197,2]
[330682866,1719708566169,-989.627791,0.00011771,2]
[330682867,1719708566191,-167.6,0.00011791,2]
[330682868,1719708566211,-250.0,0.00011807,2]
[330682869,1719708566232,-168.46,0.00011827,2]
[330682870,1719708566252,-250.0,0.0001183,2]
[330682871,1719708566274,-300.0,0.00012163,2]
[330682872,1719708566294,-346.29695111,0.00012164,2]
[330682873,1719708566314,-210.16045789,0.00012164,2]
[330682884,1719708631761,-289.83954211,0.00012164,2]
[330682885,1719708631771,-132.73405485,0.00012164,2]
[330682886,1719708631783,-367.26594515,0.00012164,2]
[330682887,1719708631793,-500.0,0.00012164,2]
[330682888,1719708631803,-134.284183,0.00012164,2]
[330682889,1719708631814,-465.715817,0.00012164,2]
[330682890,1719708631823,-325.53240685,0.00012173,2]
[330682891,1719708631835,-123.14759315,0.00012173,2]
[330682892,1719708631845,-227.02046916,0.00012273,2]
[330682893,1719708631855,-225.1098454,0.00012374,2]
[330682894,1719708631875,-345.1501546,0.00012374,2]
[330682895,1719708631885,-570.26,0.00012377,2]
[330682896,1719708631894,-999.99,0.00012377,2]
[330682897,1719708631904,-150.99,0.00012377,2]
[330682898,1719708631917,-570.26,0.0001238,2]
[330682899,1719708631926,-570.26,0.00012383,2]
[330682900,1719708631936,-570.26,0.00012387,2]
[330682901,1719708631946,-303.96,0.00012387,2]
[330682902,1719708631956,-570.26,0.0001239,2]
[330682903,1719708631966,-570.26,0.00012393,2]
[330682904,1719708631976,-570.26,0.00012396,2]
[330682905,1719708631985,-570.26,0.000124,2]
[330682906,1719708631997,-570.26,0.00012403,2]
[330682908,1719708632008,-570.26,0.00012406,2]
[330682910,1719708632018,-570.26,0.00012409,2]
[330682912,1719708632027,-570.26,0.00012413,2]
[330682913,1719708632037,-570.26,0.00012416,2]
[330682914,1719708632046,-570.26,0.00012419,2]
[330682915,1719708632055,-570.26,0.00012422,2]
[330682916,1719708632065,-570.26,0.00012426,2]
[330682917,1719708632075,-570.26,0.00012429,2]
[330682918,1719708632084,-570.26,0.00012432,2]
[330682919,1719708632095,-570.26,0.00012436,2]
[330682920,1719708632105,-853.59,0.000125,2]
[330682921,1719708632115,-853.59,0.000125,2]
[330682922,1719708632130,-418.77,0.000125,2]
[330682923,1719708632141,-156.13,0.00012569,2]
[330682924,1719708632151,-1000.0,0.00012604,2]
[330682925,1719708632161,-169.71,0.00012633,2]
[330682926,1719708632171,-418.77,0.00012641,2]
[330682927,1719708632181,-853.59,0.00012641,2]
[330682928,1719708632191,-418.77,0.00012641,2]
[330682929,1719708632201,-167.2,0.00012658,2]
[330682930,1719708632211,-1134.8498454,0.00012679,2]
[330682931,1719708632224,-736.70073511,0.00012679,2]
[330682932,1719708632236,-22028.44941949,0.00012679,2]
[330682933,1719708632246,-611.8,0.00012739,2]
[330682934,1719708632256,-199.39803425,0.00012741,2]
[330682935,1719708632269,-450.0,0.00012741,2]
[330682936,1719708632281,-204.19196575,0.00012741,2]
[330682937,1719708632290,-418.77,0.00012741,2]
[330682938,1719708632300,-418.77,0.00012741,2]
[330682939,1719708632311,-853.59,0.00012741,2]
[330682940,1719708632320,-1198.35,0.00012778,2]
[330682941,1719708632330,-404.28999425,0.00012778,2]
[330682942,1719708632341,-37.16000575,0.00012778,2]
[330682943,1719708632351,-853.59,0.000128,2]
[330682944,1719708632360,-126.29312169,0.000128,2]
[330682945,1719708632396,-292.47687831,0.000128,2]
[330682946,1719708632406,-580.54,0.000128,2]
[330682947,1719708632416,-405.77,0.000128,2]
[330682948,1719708632426,-853.59,0.00012841,2]
[330682949,1719708632435,-418.77,0.00012841,2]
[330682950,1719708632445,-418.77,0.00012941,2]
[330682951,1719708632457,-853.59,0.00012941,2]
[330682952,1719708632468,-499.99,0.00012986,2]
[330682953,1719708632478,-3989.06,0.00012986,2]
[330682954,1719708632489,-500.0,0.00012986,2]
[330682955,1719708632498,-600.0,0.00012986,2]
[330682956,1719708632507,-342.29446732,0.00013128,2]
[330682957,1719708632518,-10000.0,0.000132,2]
[330682958,1719708632528,-156.13,0.00013224,2]
[330682959,1719708632538,-150.99,0.0001335,2]
[330682960,1719708632549,-155.0,0.00013452,2]
[330682961,1719708632558,-1621.33139307,0.00013472,2]
[330682962,1719708632567,-220.24,0.00013589,3]
[330682963,1719708632578,-722.35029396,0.00013597,2]
[330682964,1719708632587,-159.20376165,0.00013598,2]
[330682965,1719708632598,-164.03076331,0.00013598,2]
[330682966,1719708632607,-61002.24044261,0.00013598,2]
[330682999,1719708637793,-2286.97497616,0.000132,2]
[330683001,1719708637803,-11053.75363668,0.00013598,2]
[330683002,1719708637815,-10672.60682071,0.00013598,2]
[330683003,1719708637825,-1133.32363,0.0001367,2]
[330683004,1719708637835,-183.14158,0.00013689,2]
[330683005,1719708637845,-1016.04,0.00013698,3]
[330683006,1719708637854,-1488.12,0.00013698,3]
[330683007,1719708637864,-993.18,0.00013698,3]
[330683008,1719708637873,-1846.79,0.00013698,3]
[330683009,1719708637885,-3749.7,0.00013698,3]
[330683010,1719708637894,-4095.3,0.00013698,3]
[330683011,1719708637907,-1116.78,0.00013698,3]
[330683012,1719708637916,-1534.96,0.00013698,3]
[330683013,1719708637926,-500.0,0.00013698,3]
[330683014,1719708637935,-500.0,0.00013698,3]
[330683015,1719708637945,-4882.86,0.00013698,3]
[330683016,1719708637954,-500.0,0.00013698,3]
[330683017,1719708637963,-500.0,0.00013698,3]
[330683018,1719708637974,-500.0,0.00013698,3]
[330683019,1719708637983,-518.16881103,0.00013698,3]
[330683020,1719708637993,-712.62,0.00013698,3]
[330683021,1719708638003,-500.0,0.00013698,3]
[330683022,1719708638013,-500.0,0.00013698,3]
[330683023,1719708638023,-500.0,0.00013698,3]
[330683024,1719708638033,-500.0,0.00013698,3]
[330683025,1719708638043,-500.0,0.00013698,3]
[330683026,1719708638053,-500.0,0.00013698,3]
[330683027,1719708638062,-500.0,0.00013698,3]
[330683028,1719708638072,-859.12,0.00013698,3]
[330683029,1719708638081,-500.0,0.00013698,3]
[330683030,1719708638091,-500.0,0.00013698,3]
[330683031,1719708638100,-163.47665819,0.00013698,3]
[330683032,1719708638110,-500.0,0.00013698,3]
[330683033,1719708638119,-1349.61,0.00013698,3]
[330683034,1719708638130,-500.0,0.00013698,3]
[330683035,1719708638140,-500.0,0.00013698,3]
[330683036,1719708638150,-500.0,0.00013698,3]
[330683037,1719708638159,-500.0,0.00013698,3]
[330683038,1719708638169,-500.0,0.00013698,3]
[330683039,1719708638179,-500.0,0.00013698,3]
[330683040,1719708638189,-500.0,0.00013698,3]
[330683041,1719708638198,-500.0,0.00013698,3]
[330683043,1719708638208,-500.0,0.00013698,2]
[330683045,1719708638217,-500.0,0.00013698,3]
[330683047,1719708638227,-500.0,0.00013698,3]
[330683049,1719708638236,-500.0,0.00013698,3]
[330683051,1719708638246,-504.59,0.00013698,3]
[330683053,1719708638255,-1218.48,0.00013698,3]
[330683055,1719708638264,-500.0,0.00013698,3]
[330683057,1719708638274,-500.0,0.00013698,3]
[330683059,1719708638282,-500.0,0.00013698,3]
[330683061,1719708638292,-500.0,0.00013698,3]
[330683063,1719708638302,-500.0,0.00013698,3]
[330683065,1719708638311,-539.36,0.00013698,3]
[330683067,1719708638321,-500.0,0.00013698,3]
[330683069,1719708638331,-500.0,0.00013698,3]
[330683071,1719708638340,-500.0,0.00013698,3]
[330683073,1719708638350,-500.0,0.00013698,3]
[330683075,1719708638359,-500.0,0.00013698,3]
[330683077,1719708638369,-500.0,0.00013698,3]
[330683079,1719708638379,-532.16,0.00013698,3]
[330683081,1719708638389,-500.0,0.00013698,3]
[330683083,1719708638398,-1159.59,0.00013698,3]
[330683085,1719708638408,-500.0,0.00013698,3]
[330683087,1719708638417,-500.0,0.00013698,3]
[330683089,1719708638427,-500.0,0.00013698,3]
[330683091,1719708638436,-500.0,0.00013698,3]
[330683093,1719708638445,-500.0,0.00013698,3]
[330683095,1719708638457,-500.0,0.00013698,3]
[330683097,1719708638468,-500.0,0.00013698,3]
[330683099,1719708638478,-500.0,0.00013698,3]
[330683101,1719708638487,-500.0,0.00013698,3]
[330683103,1719708638497,-500.0,0.00013698,3]
[330683105,1719708638509,-500.0,0.00013698,3]
[330683107,1719708638520,-925.21,0.00013698,3]
[330683109,1719708638530,-500.0,0.00013698,3]
[330683111,1719708638542,-500.0,0.00013698,3]
[330683113,1719708638552,-500.0,0.00013698,3]
[330683115,1719708638561,-500.0,0.00013698,3]
[330683117,1719708638571,-500.0,0.00013698,3]
[330683119,1719708638581,-500.0,0.00013698,3]
[330683121,1719708638591,-500.0,0.00013698,3]
[330683122,1719708638600,-948.91,0.00013698,3]
[330683123,1719708638610,-500.0,0.00013698,3]
[330683124,1719708638620,-525.03,0.00013698,3]
[330683125,1719708638630,-500.0,0.00013698,3]
[330683126,1719708638640,-500.0,0.00013698,3]
[330683127,1719708638649,-500.0,0.00013698,3]
[330683128,1719708638659,-615.55085729,0.00013698,3]
[330683129,1719708638669,-500.0,0.00013698,3]
[330683130,1719708638679,-500.0,0.00013698,3]
[330683131,1719708638688,-500.0,0.00013698,3]
[330683133,1719708638698,-1207.96,0.00013698,3]
[330683135,1719708638707,-500.0,0.00013698,3]
[330683137,1719708638717,-500.0,0.00013698,3]
[330683139,1719708638727,-500.0,0.00013698,3]
[330683141,1719708638741,-500.0,0.00013698,3]
[330683143,1719708638751,-500.0,0.00013698,3]
[330683146,1719708638761,-869.5,0.00013698,3]
[330683148,1719708638771,-608.54968945,0.00013698,3]
[330683150,1719708638780,-500.0,0.00013698,3]
[330683152,1719708638789,-1237.69,0.00013698,3]
[330683154,1719708638799,-500.0,0.00013698,3]
[330683156,1719708638808,-839.2,0.00013698,3]
[330683158,1719708638818,-250.68885062,0.00013698,3]
[330683160,1719708638827,-500.0,0.00013698,3]
[330683162,1719708638836,-954.6,0.00013698,3]
[330683164,1719708638845,-500.0,0.00013698,3]
[330683166,1719708638854,-500.0,0.00013698,3]
[330683168,1719708638864,-716.2,0.00013698,3]
[330683170,1719708638874,-500.0,0.00013698,3]
[330683172,1719708638884,-500.0,0.00013698,3]
[330683174,1719708638893,-578.76,0.00013698,3]
[330683176,1719708638902,-500.0,0.00013698,3]
[330683178,1719708638912,-786.68,0.00013698,3]
[330683180,1719708638921,-500.0,0.00013698,3]
[330683182,1719708638931,-500.0,0.00013698,3]
[330683184,1719708638940,-717.78,0.00013698,3]
[330683186,1719708638949,-500.0,0.00013698,3]
[330683188,1719708638959,-500.0,0.00013698,3]
[330683190,1719708638968,-500.0,0.00013698,3]
[330683192,1719708638978,-500.0,0.00013698,3]
[330683194,1719708638988,-353.88808735,0.00013698,3]
[330683196,1719708638998,-500.0,0.00013698,3]
[330683198,1719708639009,-500.0,0.00013698,3]
[330683200,1719708639018,-500.0,0.00013698,3]
[330683202,1719708639028,-905.61,0.00013698,3]
[330683204,1719708639039,-500.0,0.00013698,3]
[330683206,1719708639049,-500.0,0.00013698,3]
[330683208,1719708639059,-500.0,0.00013698,3]
[330683210,1719708639070,-408.48000369,0.00013698,3]
[330683212,1719708639081,-556.44,0.00013698,3]
[330683215,1719708639091,-500.0,0.00013698,3]
[330683217,1719708639102,-500.0,0.00013698,3]
[330683219,1719708639111,-500.0,0.00013698,3]
[330683221,1719708639122,-738.48,0.00013698,3]
[330683223,1719708639133,-500.0,0.00013698,3]
[330683225,1719708639143,-500.0,0.00013698,3]
[330683227,1719708639154,-500.0,0.00013698,3]
[330683229,1719708639165,-500.0,0.00013698,3]
[330683231,1719708639176,-654.93,0.00013698,3]
[330683233,1719708639186,-500.0,0.00013698,3]
[330683235,1719708639196,-500.0,0.00013698,3]
[330683237,1719708639207,-552.60205267,0.00013698,3]
[330683239,1719708639218,-500.0,0.00013698,3]
[330683241,1719708639229,-672.01,0.00013698,3]
[330683243,1719708639243,-500.0,0.00013698,3]
[330683245,1719708639254,-500.0,0.00013698,3]
[330683247,1719708639264,-500.0,0.00013698,3]
[330683249,1719708639275,-398.0608112,0.00013698,3]
[330683251,1719708639285,-252.03308528,0.00013698,3]
[330683253,1719708639296,-605.18,0.00013698,3]
[330683255,1719708639306,-1013.56,0.00013698,3]
[330683257,1719708639317,-500.0,0.00013698,3]
[330683259,1719708639327,-500.0,0.00013698,3]
[330683261,1719708639338,-534.75,0.00013698,3]
[330683263,1719708639349,-500.0,0.00013698,3]
[330683265,1719708639359,-651.9,0.00013698,3]
[330683267,1719708639370,-500.0,0.00013698,3]
[330683269,1719708639381,-537.38,0.00013698,3]
[330683271,1719708639391,-500.0,0.00013698,3]
[330683274,1719708639402,-561.84,0.00013698,3]
[330683276,1719708639413,-551.07,0.00013698,3]
[330683278,1719708639424,-685.6,0.00013698,3]
[330683280,1719708639434,-500.0,0.00013698,3]
[330683281,1719708639445,-500.0,0.00013698,3]
[330683284,1719708639455,-500.0,0.00013698,3]
[330683286,1719708639470,-500.0,0.00013698,3]
[330683287,1719708639480,-500.0,0.00013698,3]
[330683290,1719708639491,-500.0,0.00013698,3]
[330683292,1719708639502,-500.0,0.00013698,3]
[330683294,1719708639512,-500.0,0.00013698,3]
[330683296,1719708639523,-595.24,0.00013698,3]
[330683297,1719708639533,-500.0,0.00013698,3]
[330683300,1719708639547,-309.88307465,0.00013698,3]
[330683302,1719708639558,-548.68,0.00013698,3]
[330683304,1719708639568,-630.02,0.00013698,3]
[330683306,1719708639579,-663.53,0.00013698,3]
[330683308,1719708639591,-500.0,0.00013698,3]
[330683310,1719708639602,-1011.87,0.00013698,3]
[330683312,1719708639612,-500.0,0.00013698,3]
[330683314,1719708639622,-500.0,0.00013698,3]
[330683317,1719708639636,-500.0,0.00013698,3]
[330683320,1719708639647,-500.0,0.00013698,3]
[330683322,1719708639657,-4198.22,0.00013698,3]
[330683324,1719708639667,-780.35,0.00013698,3]
[330683326,1719708639677,-500.0,0.00013698,3]
[330683328,1719708639688,-500.0,0.00013698,3]
[330683330,1719708639699,-1265.1,0.00013698,3]
[330683332,1719708639709,-500.0,0.00013698,3]
[330683334,1719708639719,-1015.19,0.00013698,3]
[330683336,1719708639730,-500.0,0.00013698,3]
[330683338,1719708639740,-551.62,0.00013698,3]
[330683341,1719708639751,-500.0,0.00013698,3]
[330683343,1719708639761,-691.24,0.00013698,3]
[330683345,1719708639772,-500.0,0.00013698,3]
[330683348,1719708639783,-500.0,0.00013698,3]
[330683350,1719708639794,-500.0,0.00013698,3]
[330683353,1719708639804,-500.0,0.00013698,3]
[330683356,1719708639814,-500.0,0.00013698,3]
[330683357,1719708639824,-2378.95,0.00013698,3]
[330683360,1719708639835,-663.8,0.00013698,3]
[330683362,1719708639845,-500.0,0.00013698,3]
[330683364,1719708639855,-500.0,0.00013698,3]
[330683366,1719708639865,-500.0,0.00013698,3]
[330683368,1719708639876,-500.0,0.00013698,3]
[330683369,1719708639886,-500.0,0.00013698,3]
[330683371,1719708639896,-500.0,0.00013698,3]
[330683374,1719708639907,-688.78,0.00013698,3]
[330683376,1719708639917,-574.9,0.00013698,3]
[330683378,1719708639927,-605.77,0.00013698,3]
[330683380,1719708639937,-500.9,0.00013698,3]
[330683382,1719708639947,-1133.19,0.00013698,3]
[330683384,1719708639957,-500.0,0.00013698,3]
[330683386,1719708639967,-500.0,0.00013698,3]
[330683388,1719708639977,-500.0,0.00013698,3]
[330683390,1719708639986,-1322.56,0.00013698,3]
[330683391,1719708639996,-500.0,0.00013698,3]
[330683393,1719708640007,-532.39,0.00013698,3]
[330683394,1719708640017,-819.84,0.00013698,3]
[330683395,1719708640027,-1194.82,0.00013698,3]
[330683396,1719708640036,-500.0,0.00013698,3]
[330683397,1719708640046,-500.0,0.00013698,3]
[330683398,1719708640055,-500.0,0.00013698,3]
[330683399,1719708640065,-500.0,0.00013698,3]
[330683400,1719708640076,-506.93,0.00013698,3]
[330683401,1719708640085,-927.89,0.00013698,3]
[330683403,1719708640095,-500.0,0.00013698,3]
[330683405,1719708640106,-548.68,0.00013698,3]
[330683407,1719708640116,-802.38,0.00013698,3]
[330683409,1719708640127,-500.0,0.00013698,3]
[330683411,1719708640137,-500.0,0.00013698,3]
[330683413,1719708640146,-500.0,0.00013698,3]
[330683415,1719708640157,-500.0,0.00013698,3]
[330683417,1719708640166,-500.0,0.00013698,3]
[330683419,1719708640176,-500.0,0.00013698,3]
[330683421,1719708640186,-600.31,0.00013698,3]
[330683423,1719708640196,-651.38,0.00013698,3]
[330683425,1719708640206,-500.0,0.00013698,3]
[330683427,1719708640216,-500.0,0.00013698,3]
[330683429,1719708640226,-1115.8,0.00013698,3]
[330683431,1719708640237,-500.0,0.00013698,3]
[330683433,1719708640247,-500.0,0.00013698,3]
[330683435,1719708640256,-538.79,0.00013698,3]
[330683438,1719708640277,-696.53,0.00013698,3]
[330683440,1719708640287,-582.47,0.00013698,3]
[330683442,1719708640296,-500.0,0.00013698,3]
[330683444,1719708640306,-730.7,0.00013698,3]
[330683446,1719708640316,-632.06,0.00013698,3]
[330683448,1719708640326,-500.0,0.00013698,3]
[330683450,1719708640336,-500.0,0.00013698,3]
[330683452,1719708640346,-788.94,0.00013698,3]
[330683454,1719708640355,-500.0,0.00013698,3]
[330683456,1719708640366,-500.0,0.00013698,3]
[330683458,1719708640377,-500.0,0.00013698,3]
[330683461,1719708640388,-1034.28,0.00013698,3]
[330683463,1719708640398,-1352.07,0.00013698,3]
[330683464,1719708640408,-500.0,0.00013698,3]
[330683467,1719708640419,-500.0,0.00013698,3]
[330683469,1719708640430,-500.0,0.00013698,3]
[330683471,1719708640440,-1185.2,0.00013698,3]
[330683473,1719708640450,-500.0,0.00013698,3]
[330683475,1719708640463,-500.0,0.00013698,3]
[330683519,1719708640878,-608.93,0.00013698,3]
[330683521,1719708640888,-500.0,0.00013698,3]
[330683523,1719708640899,-500.0,0.00013698,3]
[330683525,1719708640907,-500.0,0.00013698,3]
[330683527,1719708640917,-500.0,0.00013698,3]
[330683529,1719708640926,-841.01,0.00013698,3]
[330683531,1719708640935,-500.0,0.00013698,3]
[330683533,1719708640945,-1834.92,0.00013698,3]
[330683535,1719708640955,-500.0,0.00013698,3]
[330683537,1719708640963,-500.0,0.00013698,3]
[330683539,1719708640972,-500.0,0.00013698,3]
[330683541,1719708640981,-500.0,0.00013698,3]
[330683543,1719708640990,-500.0,0.00013698,3]
[330683545,1719708641001,-515.1,0.00013698,3]
[330683547,1719708641010,-500.0,0.00013698,3]
[330683549,1719708641020,-549.76,0.00013698,3]
[330683551,1719708641029,-500.0,0.00013698,3]
[330683553,1719708641039,-1012.12,0.00013698,3]
[330683555,1719708641048,-1206.72,0.00013698,3]
[330683557,1719708641057,-1206.72,0.00013698,3]
[330683559,1719708641066,-500.0,0.00013698,3]